[Event "18th Brasschaat Open 2018"]
[Site "Brasschaat"]
[Date "2018.08.22"]
[Round "5"]
[White "Van Herck, Marcel"]
[Black "Sadkowski, Daniel"]
[Result "1/2-1/2"]
[ECO "D63"]
[WhiteElo "2019"]
[BlackElo "2235"]
[Annotator "NA"]
[PlyCount "121"]
[EventDate "2018.08.18"]
[EventType "swiss"]
[EventCountry "BEL"]
[SourceTitle "playchess.com"]
[Source "ChessBase"]
[SourceQuality "1"]
[TimeControl "40/5400+30:1800+30"]

1. d4 {[%emt 0:02:40]} Nf6 {[%emt 0:01:50]} 2. Nf3 {[%emt 0:02:21]} e6 {[%emt 0:04:38]} 3. c4 {[%emt 0:01:33]} d5 {[%emt 0:02:11]} 4. Nc3 {[%emt 0:00:36]} Be7 {[%emt 0:00:18]} 5. Bg5 {[%emt 0:01:08]} Nbd7 {[%emt 0:00:16]} 6. e3 {[%emt 0:01:10]} h6 {[%emt 0:00:16]} 7. Bh4 {[%emt 0:00:38]} O-O {[%emt 0:00:08]} 8. Rc1 {[%emt 0:01:48]} c5 {[%emt 0:00:48]} 9. cxd5 {[%emt 0:19:09]} Nxd5 {[%emt 0:00:50]} 10. Bxe7 {[%emt 0:01:01]} Nxe7 {[%emt 0:00:26]} 11. Be2 {[%emt 0:03:34]} b6 {[%emt 0:06:22] LiveBook: 13 Games} 12. O-O {[%emt 0:09:55]} Bb7 {[%emt 0:01:03]} 13. Qa4 {[%emt 0:08:42]} a6 {[%emt 0:06:29]} 14. dxc5 {[%emt 0:01:21]} Nxc5 {[%emt 0:00:34]} 15. Qc2 {[%emt 0:03:05]} Nd5 {[%emt 0:22:13]} 16. Rfd1 $11 {[%emt 0:01:04]} Qe7 {[%emt 0:01:30]} 17. Nxd5 {[%emt 0:03:16]} Bxd5 {[%emt 0:00:12]} 18. b4 {[%emt 0:01:40]} Ne4 {[%emt 0:01:32]} 19. Bd3 {[%emt 0:07:28]} Nf6 {[%emt 0:08:55]} 20. a3 {[%emt 0:05:31]} Qb7 {[%emt 0:02:56]} 21. Qe2 {[%emt 0:01:58]} a5 {[%emt 0:13:46]} 22. b5 {[%emt 0:00:39]} Rac8 {[%emt 0:00:10]} 23. Ne1 {[%emt 0:02:00]} Qe7 {[%emt 0:08:16]} 24. Qb2 {[%emt 0:00:22]} Bb7 {[%emt 0:02:39]} 25. Be2 {[%emt 0:05:06]} Nd5 {[%emt 0:03:04]} 26. Bf3 {[%emt 0:00:20]} Rfd8 {[%emt 0:02:25]} 27. Rxc8 {[%emt 0:08:26]} Rxc8 {[%emt 0:00:13]} 28. Rc1 {[%emt 0:00:08]} Rxc1 {[%emt 0:02:01]} 29. Qxc1 {[%emt 0:00:02]} e5 {[%emt 0:01:57]} 30. Be4 {[%emt 0:03:52]} g6 {[%emt 0:02:28]} 31. Qc4 {[%emt 0:02:03]} Qd6 {[%emt 0:00:26]} 32. g4 {[%emt 0:00:29]} Qe6 {[%emt 0:00:38]} 33. f3 {[%emt 0:00:43]} f5 {[%emt 0:00:21]} 34. gxf5 {[%emt 0:00:15]} gxf5 {[%emt 0:00:05]} 35. Bxf5 {[%emt 0:00:49]} Qxf5 {[%emt 0:00:05]} 36. e4 {[%emt 0:00:03]} Qf4 {[%emt 0:01:28]} 37. Ng2 {[%emt 0:00:40]} Qxf3 {[%emt 0:00:27]} 38. exd5 {[%emt 0:00:21]} Qxd5 {[%emt 0:01:48]} 39. Ne3 {[%emt 0:00:23]} Qf7 {[%emt 0:01:03]} 40. Qxf7+ {[%emt 0:00:27]} Kxf7 {[%emt 0:00:03]} 41. Nc4 {[%emt 0:30:03]} Ke6 {[%emt 0:30:52]} 42. Nxb6 {[%emt 0:00:10]} Be4 {[%emt 0:02:29]} 43. Nc4 {[%emt 0:02:28]} Kd5 {[%emt 0:00:00]} 44. Nxa5 {[%emt 0:00:00]} Kc5 {[%emt 0:00:00]} 45. b6 {[%emt 0:00:00]} Kxb6 {[%emt 0:00:00]} 46. Nc4+ {[%emt 0:00:00]} Kc5 {[%emt 0:00:00]} 47. Nxe5 {[%emt 0:00:00]} Kd4 {[%emt 0:00:00]} 48. Ng4 {[%emt 0:00:00]} h5 {[%emt 0:00:00]} 49. Nf6 {[%emt 0:00:00]} Bg6 {[%emt 0:00:00]} 50. Kf2 {[%emt 0:00:00]} Ke5 {[%emt 0:00:00]} 51. Nd7+ {[%emt 0:00:00]} Kd6 {[%emt 0:00:00]} 52. Nb6 {[%emt 0:00:00]} Kc5 {[%emt 0:00:00]} 53. Na4+ {[%emt 0:00:00]} Kc4 {[%emt 0:00:00]} 54. Nb2+ {[%emt 0:00:00]} Kb3 {[%emt 0:00:00]} 55. Nd1 {[%emt 0:00:00]} Kxa3 {[%emt 0:00:00]} 56. Kg3 {[%emt 0:00:00]} Kb4 {[%emt 0:00:00]} 57. Kf4 {[%emt 0:00:00]} Kc5 {[%emt 0:00:00]} 58. Ke5 {[%emt 0:00:00]} Kc6 {[%emt 0:00:00]} 59. h4 {[%emt 0:00:00]} Kd7 {[%emt 0:00:00]} 60. Kf6 {[%emt 0:00:00]} Be4 {[%emt 0:00:00]} 61. Ne3 {[%emt 0:00:00]} 1/2-1/2

[Event "18th Brasschaat Open 2018"]
[Site "Brasschaat"]
[Date "2018.08.22"]
[Round "5"]
[White "Van Dijck, Bjarne"]
[Black "Vande Ginste, Michiel"]
[Result "1-0"]
[ECO "B22"]
[WhiteElo "1932"]
[BlackElo "1762"]
[Annotator "NA"]
[PlyCount "41"]
[EventDate "2018.08.18"]
[EventType "swiss"]
[EventCountry "BEL"]
[SourceTitle "playchess.com"]
[Source "ChessBase"]
[SourceQuality "1"]
[TimeControl "40/5400+30:1800+30"]

1. e4 {[%emt 0:01:21]} c5 {[%emt 0:00:00]} 2. c3 {[%emt 0:00:21]} Nf6 {[%emt 0:00:00]} 3. e5 {[%emt 0:00:03]} Nd5 {[%emt 0:00:00]} 4. d4 {[%emt 0:00:04]} cxd4 {[%emt 0:00:00]} 5. cxd4 {[%emt 0:00:04]} b6 {[%emt 0:01:52]} 6. Nc3 {[%emt 0:24:13]} Bb7 {[%emt 0:00:41]} 7. Nf3 {[%emt 0:02:03] LiveBook: 5 Games} a6 {[%emt 0:04:06]} 8. Bc4 {[%emt 0:06:20]} Nxc3 {[%emt 0:07:55]} 9. bxc3 {[%emt 0:00:07]} b5 {[%emt 0:00:10]} (9... Qc7 $11 {bleibt in der Remisbreite.} 10. Be2 e6) 10. Bb3 {[%emt 0:01:57]} Qc7 {[%emt 0:01:26]} 11. Qd3 {[%emt 0:09:41]} Nc6 {[%emt 0:29:47]} 12. Bf4 {[%emt 0:06:17]} e6 $11 {[%emt 0:00:38]} 13. d5 {[%emt 0:09:07]} exd5 {[%emt 0:04:46]} 14. Bxd5 {[%emt 0:05:45]} Nd8 {[%emt 0:12:43]} 15. e6 {[%emt 0:09:28]} d6 {[%emt 0:00:06]} 16. exf7+ {[%emt 0:03:36]} Nxf7 {[%emt 0:00:16]} 17. Qe4+ {[%emt 0:02:30]} Be7 {[%emt 0:01:00]} 18. Bxb7 {[%emt 0:00:55]} Qxc3+ {[%emt 0:01:20]} 19. Ke2 {[%emt 0:00:06]} d5 {[%emt 0:00:52]} 20. Qxd5 {[%emt 0:01:46]} Qb2+ {[%emt 0:00:14]} 21. Qd2 {[%emt 0:14:46]} 1-0

[Event "18th Brasschaat Open 2018"]
[Site "Brasschaat"]
[Date "2018.08.22"]
[Round "5"]
[White "Engelaer, Maurice"]
[Black "Boudry, William"]
[Result "1/2-1/2"]
[ECO "C02"]
[WhiteElo "1915"]
[BlackElo "2044"]
[Annotator "NA"]
[PlyCount "108"]
[EventDate "2018.08.18"]
[EventType "swiss"]
[EventCountry "BEL"]
[SourceTitle "playchess.com"]
[Source "ChessBase"]
[SourceQuality "1"]
[TimeControl "40/5400+30:1800+30"]

1. e4 {[%emt 0:00:00]} e6 {[%emt 0:00:05]} 2. d4 {[%emt 0:00:00]} d5 {[%emt 0:00:06]} 3. e5 {[%emt 0:00:00]} c5 {[%emt 0:00:04]} 4. c3 {[%emt 0:00:04]} Nc6 {[%emt 0:00:07]} 5. Nf3 {[%emt 0:00:03]} Bd7 {[%emt 0:00:12]} 6. Be2 {[%emt 0:01:31]} f6 {[%emt 0:00:23]} 7. O-O {[%emt 0:02:33]} fxe5 {[%emt 0:00:05]} 8. dxe5 {[%emt 0:00:51]} Qc7 {[%emt 0:00:08]} 9. Re1 {[%emt 0:01:48]} O-O-O {[%emt 0:00:06] LiveBook: 15 Games C02: Französische Verteidigung (Vorstoßvariante)} 10. Ng5 $146 {[%emt 0:17:29]} ({Vorgänger:} 10. b4 Nxe5 11. Nxe5 Qxe5 12. Bf3 Qc7 13. Be3 Nf6 14. Nd2 c4 15. a4 Bd6 16. a5 Kb8 17. Nf1 {0-1 (40) Volkov,S (2624)-Alekseev,E (2632) Khanty-Mansiysk 2016}) 10... Nh6 {[%emt 0:02:40]} 11. f4 {[%emt 0:00:56]} Be7 {[%emt 0:00:38]} 12. Nf3 {[%emt 0:01:40]} g5 {[%emt 0:03:01]} 13. Na3 {[%emt 0:05:24]} (13. Nxg5 $11 Bxg5 14. fxg5) 13... gxf4 {[%emt 0:01:13]} 14. Bxf4 {[%emt 0:02:19]} Nf7 {[%emt 0:00:10]} 15. Qd2 {[%emt 0:28:38]} a6 {[%emt 0:08:29]} 16. Nc2 {[%emt 0:00:52]} Rhg8 {[%emt 0:14:41]} 17. Kh1 {[%emt 0:01:21]} Rg7 {[%emt 0:10:28]} (17... Ncxe5 $17 18. Nxe5 Nxe5) 18. b4 {[%emt 0:01:24]} Rdg8 {[%emt 0:01:10]} 19. Bf1 {[%emt 0:01:06]} Ng5 {[%emt 0:00:51]} 20. Nxg5 {[%emt 0:02:25]} Bxg5 {[%emt 0:00:22]} 21. bxc5 {[%emt 0:01:18] [#]} Bxf4 $11 {[%emt 0:01:39]} ({Günstiger ist} 21... Nxe5 $1 $19 {[%mdl 512]} 22. Bxg5 (22. Rxe5 Qxe5 23. Bxe5 Bxd2 $17) 22... Rxg5) 22. Qxf4 {[%emt 0:00:30]} Rg5 {[%emt 0:01:17]} 23. Nd4 {[%emt 0:11:45]} Nxe5 {[%emt 0:00:44]} 24. Rab1 {[%emt 0:00:43]} h6 {[%emt 0:09:53]} 25. c6 {[%emt 0:01:56]} Nxc6 {[%emt 0:00:38]} 26. Qxc7+ {[%emt 0:00:21]} Kxc7 {[%emt 0:00:03]} 27. Nxe6+ {[%emt 0:00:31]} Bxe6 {[%emt 0:00:04]} 28. Rxe6 {[%emt 0:00:11]} h5 {[%emt 0:01:11]} 29. Rh6 {[%emt 0:03:16]} R8g7 {[%emt 0:00:43]} 30. g3 {[%emt 0:00:25]} Re7 {[%emt 0:01:14]} 31. Bg2 {[%emt 0:00:30]} Rge5 {[%emt 0:00:21]} 32. Kg1 {[%emt 0:01:54]} Na5 {[%emt 0:02:42]} 33. Bf3 {[%emt 0:00:58]} Nc4 {[%emt 0:00:46]} 34. Bxh5 {[%emt 0:02:03]} Nd2 {[%emt 0:00:22]} 35. Rd1 {[%emt 0:00:19]} Ne4 {[%emt 0:01:35]} 36. Rc1 {[%emt 0:01:00]} Nd2 {[%emt 0:02:55]} 37. Bg4 {[%emt 0:01:44]} Re1+ {[%emt 0:00:42]} 38. Rxe1 {[%emt 0:00:07]} Rxe1+ {[%emt 0:00:04]} 39. Kf2 {[%emt 0:00:20]} Ra1 {[%emt 0:00:01]} 40. Ke3 {[%emt 0:02:43]} Nf1+ {[%emt 0:01:04]} 41. Ke2 {[%emt 0:09:57]} Nxh2 {[%emt 0:01:00]} 42. Be6 {[%emt 0:03:10]} Rxa2+ {[%emt 0:00:11]} 43. Kd3 {[%emt 0:00:58]} Nf1 {[%emt 0:04:02]} 44. Bxd5 {[%emt 0:01:00]} Rd2+ {[%emt 0:00:08]} 45. Ke4 {[%emt 0:00:18]} Nxg3+ {[%emt 0:00:07]} 46. Ke5 {[%emt 0:01:00]} Kb8 {[%emt 0:02:30]} 47. Rh8+ {[%emt 0:02:22]} Ka7 {[%emt 0:00:14]} 48. Rh7 {[%emt 0:00:16]} Rb2 {[%emt 0:00:11]} 49. c4 {[%emt 0:01:09]} Nf1 {[%emt 0:03:18]} 50. c5 {[%emt 0:03:22]} Ne3 {[%emt 0:01:02]} 51. c6 {[%emt 0:02:08]} Nxd5 {[%emt 0:00:41]} 52. Kxd5 {[%emt 0:00:05]} Rb5+ {[%emt 0:00:16]} 53. Kc4 {[%emt 0:01:23]} Rb6 {[%emt 0:00:21]} 54. Rxb7+ {[%emt 0:00:22]} Rxb7 {[%emt 0:00:06]} 1/2-1/2

[Event "18th Brasschaat Open 2018"]
[Site "Brasschaat"]
[Date "2018.08.22"]
[Round "5"]
[White "Butzen, Robin"]
[Black "Ismail, Tamer"]
[Result "1-0"]
[ECO "E69"]
[WhiteElo "1899"]
[BlackElo "1999"]
[Annotator "NA"]
[PlyCount "55"]
[EventDate "2018.08.18"]
[EventType "swiss"]
[EventCountry "BEL"]
[SourceTitle "playchess.com"]
[Source "ChessBase"]
[SourceQuality "1"]
[TimeControl "40/5400+30:1800+30"]

1. d4 {[%emt 0:00:00]} d6 {[%emt 0:21:31]} 2. Nf3 {[%emt 0:01:20]} Nf6 {[%emt 0:01:24]} 3. g3 {[%emt 0:00:48]} g6 {[%emt 0:00:08]} 4. Bg2 {[%emt 0:00:06]} Bg7 {[%emt 0:00:01]} 5. O-O {[%emt 0:00:30]} O-O {[%emt 0:00:05]} 6. h3 {[%emt 0:00:45]} c6 {[%emt 0:00:42]} 7. c4 {[%emt 0:00:14]} Nbd7 {[%emt 0:00:36]} 8. Nc3 {[%emt 0:00:08]} e5 {[%emt 0:00:04]} 9. e4 {[%emt 0:00:19]} Re8 {[%emt 0:00:15]} 10. Be3 {[%emt 0:00:26]} a5 {[%emt 0:01:54]} 11. Qc2 {[%emt 0:00:20]} exd4 {[%emt 0:00:30]} 12. Nxd4 {[%emt 0:00:07]} Nc5 {[%emt 0:00:06]} 13. Rad1 {[%emt 0:00:11]} Qe7 {[%emt 0:01:29] LiveBook: 88 Games} 14. Rfe1 {[%emt 0:00:07]} Ne6 $16 {[%emt 0:02:44]} ({Don't blunder} 14... Ncxe4 $2 15. Bf4 $18) (14... a4 $14) 15. f4 {[%emt 0:02:43]} Nh5 {[%emt 0:24:27]} 16. Kh2 {[%emt 0:11:28]} Nxd4 {[%emt 0:00:10]} 17. Bxd4 {[%emt 0:00:14]} Bxd4 {[%emt 0:02:32]} 18. Rxd4 {[%emt 0:00:04]} f5 {[%emt 0:02:25]} 19. Qd2 {[%emt 0:17:09]} Nf6 {[%emt 0:04:40]} 20. Rxd6 {[%emt 0:09:52]} Nd5 {[%emt 0:04:11]} 21. e5 {[%emt 0:07:54]} Nxc3 {[%emt 0:00:07]} 22. Qxc3 {[%emt 0:00:40]} Be6 {[%emt 0:00:13]} 23. Red1 {[%emt 0:02:19]} Qf7 {[%emt 0:00:24]} 24. Bf1 {[%emt 0:05:39]} a4 {[%emt 0:00:39]} 25. Qb4 {[%emt 0:02:59]} Reb8 {[%emt 0:11:14]} 26. R1d4 {[%emt 0:08:39]} b5 {[%emt 0:09:52]} 27. cxb5 {[%emt 0:02:15]} cxb5 {[%emt 0:11:07]} 28. Bg2 {[%emt 0:03:37]} 1-0

[Event "18th Brasschaat Open 2018"]
[Site "Brasschaat"]
[Date "2018.08.22"]
[Round "5"]
[White "Pattyn, Luc"]
[Black "Sikkel, Dirk"]
[Result "1/2-1/2"]
[ECO "A42"]
[WhiteElo "1755"]
[BlackElo "1973"]
[Annotator "NA"]
[PlyCount "53"]
[EventDate "2018.08.18"]
[EventType "swiss"]
[EventCountry "BEL"]
[SourceTitle "playchess.com"]
[Source "ChessBase"]
[SourceQuality "1"]
[TimeControl "40/5400+30:1800+30"]

1. d4 {[%emt 0:21:47]} g6 {[%emt 0:00:32]} 2. c4 {[%emt 0:00:04]} Bg7 {[%emt 0:00:09]} 3. Nc3 {[%emt 0:00:05]} d6 {[%emt 0:00:11]} 4. e4 {[%emt 0:00:10]} e5 {[%emt 0:00:31]} 5. d5 {[%emt 0:00:10]} a5 {[%emt 0:00:37]} 6. Be2 {[%emt 0:00:32]} Nd7 {[%emt 0:01:14] LiveBook: 16 Games} 7. Be3 {[%emt 0:01:04] A42: Modern Defence: Averbakh Variation} Nc5 {[%emt 0:02:31]} (7... Bh6 8. Bxh6 Nxh6 9. h4 Kf8 10. Qd2 Kg7 11. g4 f6 12. f3 Nc5 13. Bd3 Nf7 14. Nge2 h5 15. gxh5 Rxh5 {1-0 (56) Goryachkina,A (2491)-Muradli,M (2398) Batumi 2018}) 8. g4 {[%emt 0:00:27]} Bh6 {[%emt 0:07:44]} 9. Qd2 {[%emt 0:02:22]} (9. Bxc5 $1 $14 dxc5 10. h4) 9... Bxe3 {[%emt 0:00:52]} 10. Qxe3 {[%emt 0:00:14]} f6 $146 {[%emt 0:03:33]} ({Predecessor:} 10... h6 11. h4 Nf6 12. f3 Bd7 13. Nh3 Qb8 14. f4 Qa7 15. fxe5 dxe5 {1-0 (30) Manne,P-Cramling,D (2345) Gausdal 1982}) 11. f3 {[%emt 0:02:36]} Bd7 {[%emt 0:02:35]} 12. Nh3 {[%emt 0:00:55]} h5 {[%emt 0:02:40]} 13. Nf2 {[%emt 0:00:48]} h4 {[%emt 0:02:14]} 14. h3 {[%emt 0:14:57]} g5 {[%emt 0:07:00]} 15. Nd3 {[%emt 0:05:49]} b6 {[%emt 0:05:12]} 16. a4 {[%emt 0:02:25]} Ne7 {[%emt 0:01:06]} 17. Nb5 $15 {[%emt 0:03:55]} Nxd3+ {[%emt 0:02:34]} 18. Bxd3 {[%emt 0:00:59]} Ng6 {[%emt 0:00:28]} 19. Nc3 {[%emt 0:05:14]} Nf4 {[%emt 0:02:39]} 20. Rh2 {[%emt 0:01:10]} Qe7 {[%emt 0:08:31]} 21. Bc2 {[%emt 0:03:47]} Kf7 {[%emt 0:06:45]} 22. Kf1 {[%emt 0:02:36]} Rhe8 {[%emt 0:03:02]} 23. Re1 {[%emt 0:01:53]} Qd8 {[%emt 0:03:29]} 24. Ne2 {[%emt 0:00:37]} Qc8 {[%emt 0:04:31]} 25. Qf2 {[%emt 0:08:13]} Qa6 {[%emt 0:02:38]} 26. Nxf4 {[%emt 0:01:41]} exf4 {[%emt 0:03:37]} 27. Qd4 {[%emt 0:01:52]} 1/2-1/2

[Event "18th Brasschaat Open 2018"]
[Site "Brasschaat"]
[Date "2018.08.23"]
[Round "6"]
[White "Oudewaal, Vincent"]
[Black "Butzen, Robin"]
[Result "1/2-1/2"]
[ECO "A11"]
[WhiteElo "2070"]
[BlackElo "1899"]
[Annotator "NA RC"]
[PlyCount "54"]
[EventDate "2018.08.18"]
[EventType "swiss"]
[EventCountry "BEL"]
[SourceTitle "playchess.com"]
[Source "ChessBase"]
[SourceQuality "1"]
[TimeControl "40/5400+30:1800+30"]

1. c4 {[%emt 0:00:00]} c6 {[%emt 0:00:00]} 2. g3 {[%emt 0:00:00]} d5 {[%emt 0:00:00]} 3. Bg2 {[%emt 0:00:00]} Nf6 {[%emt 0:00:00]} 4. Nf3 {[%emt 0:00:00]} Bf5 {[%emt 0:00:00]} 5. cxd5 {[%emt 0:02:16] LiveBook: 523 Games} cxd5 {[%emt 0:05:02]} 6. Nc3 {[%emt 0:03:44] A11: English Opening: 1...c6} (6. Qb3 Nc6 7. Qxb7 Bd7 8. Qb3 e5 9. O-O e4 10. Ne1 Rb8 11. Qd1 h5 12. d3 h4 13. Bf4 hxg3 14. Bxg3 {½-½ (23) Artemiev,V (2697)-Petrosian,T (2589) Moscow 2018}) 6... Nc6 {[%emt 0:06:39]} 7. Nh4 {[%emt 0:08:15]} Be6 {[%emt 0:07:29]} 8. d4 {[%emt 0:00:13]} g6 {[%emt 0:09:09]} 9. Nf3 {[%emt 0:09:35]} Bg7 {[%emt 0:00:05]} 10. O-O {[%emt 0:00:50]} O-O {[%emt 0:00:02]} 11. Bf4 $146 {[%emt 0:00:41]} ({Predecessor:} 11. b3 Qc8 12. Bb2 {½-½ (12) Gregory,K (2011)-Gostelow,D (2044) Birmingham 2015}) 11... h6 {[%emt 0:12:28]} 12. Ne5 {[%emt 0:01:50]} Rc8 {[%emt 0:05:25]} 13. Qd2 {[%emt 0:02:21]} Kh7 {[%emt 0:20:53]} 14. Rfc1 {[%emt 0:03:28]} Nh5 {[%emt 0:06:10]} 15. Na4 {[%emt 0:09:25]} Nxf4 {[%emt 0:04:56]} 16. gxf4 {[%emt 0:01:17]} Nxe5 {[%emt 0:02:32]} 17. fxe5 {[%emt 0:00:09]} b6 {[%emt 0:01:07]} 18. Nc3 {[%emt 0:02:24]} Qd7 {[%emt 0:01:16]} 19. Qd3 {[%emt 0:03:21]} Bf5 {[%emt 0:01:51]} 20. Qa6 {[%emt 0:02:12]} Bh3 {[%emt 0:00:31]} 21. e3 {[%emt 0:10:45]} Rc4 {[%emt 0:03:54]} 22. Bxh3 {[%emt 0:02:54]} Qxh3 {[%emt 0:00:18]} 23. Nxd5 {[%emt 0:08:39]} Bxe5 {[%emt 0:01:06]} 24. f4 {[%emt 0:00:07]} Qg4+ {[%emt 0:03:21]} 25. Kf2 {[%emt 0:00:23]} Qh4+ {[%emt 0:00:28]} 26. Kg2 $1 {[%emt 0:01:57]} Qg4+ {[%emt 0:00:09]} 27. Kf2 {[%emt 0:00:07]} Qh4+ {[%emt 0:00:03]} 1/2-1/2

[Event "18th Brasschaat Open 2018"]
[Site "Brasschaat"]
[Date "2018.08.23"]
[Round "6"]
[White "De Bock, Thijs"]
[Black "Pattyn, Luc"]
[Result "1-0"]
[ECO "B76"]
[WhiteElo "1959"]
[BlackElo "1755"]
[Annotator "NA RC"]
[PlyCount "95"]
[EventDate "2018.08.18"]
[EventType "swiss"]
[EventCountry "BEL"]
[SourceTitle "playchess.com"]
[Source "ChessBase"]
[SourceQuality "1"]
[TimeControl "40/5400+30:1800+30"]

1. e4 {[%emt 0:00:00]} c5 {[%emt 0:05:21]} 2. Nf3 {[%emt 0:01:19]} d6 {[%emt 0:00:47]} 3. d4 {[%emt 0:00:05]} cxd4 {[%emt 0:00:05]} 4. Nxd4 {[%emt 0:00:04]} Nf6 {[%emt 0:00:13]} 5. Nc3 {[%emt 0:00:04]} g6 {[%emt 0:00:09]} 6. Be3 {[%emt 0:00:07]} Bg7 {[%emt 0:00:12]} 7. f3 {[%emt 0:00:28]} O-O {[%emt 0:00:12]} 8. Qd2 {[%emt 0:00:11]} Nc6 {[%emt 0:00:11]} 9. g4 {[%emt 0:00:04]} Be6 {[%emt 0:00:23]} 10. O-O-O {[%emt 0:00:29]} Rc8 {[%emt 0:03:19] LiveBook: 15 Games} 11. Kb1 {[%emt 0:00:32] B76: Sicilian Dragon: Yugoslav Attack, 9 g4 and 9 0-0-0} Nxd4 {[%emt 0:03:37]} 12. Bxd4 {[%emt 0:00:03]} Qa5 {[%emt 0:03:59]} (12... Nd7 13. Bxg7 Kxg7 14. Nd5 f6 15. h4 Rc5 16. g5 fxg5 17. hxg5 Rxf3 18. Be2 Rf8 19. Rh4 Ne5 20. Rdh1 Bg8 21. Qd4 h5 22. gxh6+ Kh7 23. Bd3 Bxd5 24. exd5 Rf6 25. Re4 {½-½ (25) Telepnev,I (2505)-Matei,C (2478) ICCF email 2013}) 13. Nd5 {[%emt 0:00:43]} Qxd2 {[%emt 0:00:16]} 14. Nxe7+ {[%emt 0:00:06]} Kh8 {[%emt 0:00:13]} 15. Rxd2 {[%emt 0:00:06]} Rc7 {[%emt 0:00:22]} 16. Nd5 $146 {[%emt 0:02:17]} ({Predecessor:} 16. g5 Ne8 17. Nd5 Bxd5 18. Bxg7+ Kxg7 19. Rxd5 Rc5 20. Rxc5 dxc5 {1-0 (28) Pytlik,L (2403)-Stein,K (2178) ICCF email 2006}) 16... Bxd5 {[%emt 0:01:16]} 17. exd5 {[%emt 0:00:04]} a6 {[%emt 0:04:23]} 18. h4 {[%emt 0:01:22]} Kg8 {[%emt 0:03:39]} 19. h5 {[%emt 0:01:10]} Nd7 {[%emt 0:00:32]} 20. f4 {[%emt 0:01:16]} (20. Bf2 $16) 20... Re8 {[%emt 0:06:04]} 21. b3 {[%emt 0:03:24]} Re1+ {[%emt 0:03:31]} 22. Kb2 $1 {[%emt 0:00:01]} Re4 {[%emt 0:03:30]} 23. Bxg7 {[%emt 0:00:14]} Kxg7 {[%emt 0:00:06]} 24. hxg6 {[%emt 0:00:37]} fxg6 {[%emt 0:04:02]} 25. Rdh2 {[%emt 0:00:44]} Nf8 {[%emt 0:01:17]} 26. Rf2 {[%emt 0:00:24]} Rf7 {[%emt 0:00:55]} 27. Bd3 {[%emt 0:04:24]} Rexf4 {[%emt 0:01:18]} 28. Rxf4 {[%emt 0:00:01]} Rxf4 {[%emt 0:00:30]} 29. Re1 {[%emt 0:00:03]} Kf7 {[%emt 0:01:39]} 30. Re4 {[%emt 0:00:08]} Rxe4 {[%emt 0:06:33]} 31. Bxe4 {[%emt 0:00:10]} Kf6 {[%emt 0:01:56]} 32. c4 {[%emt 0:01:40]} Nd7 {[%emt 0:00:43]} 33. Bf3 {[%emt 0:02:28]} b6 {[%emt 0:07:08]} 34. b4 {[%emt 0:01:25]} Kg5 {[%emt 0:00:53]} 35. a4 {[%emt 0:02:17] [#]} Kf4 $17 {[%emt 0:04:43]} (35... h5 $1 $19 {and Black stays clearly on top.} 36. b5 (36. gxh5 $2 gxh5 37. Kc3 h4 $19) 36... a5 37. gxh5 gxh5) 36. Be2 {[%emt 0:00:15]} Ke3 {[%emt 0:00:20]} 37. Bd1 {[%emt 0:11:53]} Kd4 {[%emt 0:13:10]} 38. Kb3 {[%emt 0:00:37]} Ne5 {[%emt 0:12:46]} 39. Be2 {[%emt 0:01:36]} h5 {[%emt 0:01:32]} 40. gxh5 {[%emt 0:03:01]} gxh5 {[%emt 0:00:09]} 41. c5 {[%emt 0:31:09]} bxc5 {[%emt 0:31:03]} 42. Bxa6 {[%emt 0:01:14]} cxb4 {[%emt 0:02:32]} 43. Kxb4 {[%emt 0:00:18]} h4 {[%emt 0:00:53]} 44. Bf1 {[%emt 0:01:10]} Nd3+ {[%emt 0:01:45]} 45. Kb5 {[%emt 0:00:28]} Nc5 {[%emt 0:00:42]} 46. Bg2 {[%emt 0:00:39]} h3 {[%emt 0:00:37]} 47. Bh1 {[%emt 0:00:06]} h2 {[%emt 0:02:14]} 48. a5 {[%emt 1:03:04]} 1-0